bitfinex-derivatives/quotes_ETHF0:USTF0_20250927
["timestamp","ask_amount","ask_price","bid_price","bid_amount"]
[1758978033151,4.93928,4031.7,4031.6,5.8411]
[1758978033347,4.65528,4031.7,4031.6,5.8411]
[1758978033550,4.93928,4031.7,4031.6,5.8411]
[1758978034048,6.06578,4031.7,4031.6,5.8411]
[1758978034950,9.86578,4031.7,4031.6,3.9798]
[1758978035140,0.44621,4031.4,4031.3,1.083]
[1758978035347,3.35581,4031.4,4031.3,1.855]
[1758978035854,1.4991,4031.1,4031.0,6.30576852]
[1758978036056,1.7821,4031.1,4031.0,6.30576852]
[1758978036348,0.7456,4032.5,4032.4,2.6333]
[1758978036554,1.003,4032.5,4032.4,2.6333]
[1758978036748,1.7486,4032.5,4032.4,2.6333]
[1758978037147,1.7486,4032.5,4032.0,0.4697]
[1758978037148,9.2121,4032.5,4032.1,1.083]
[1758978037354,0.7456,4032.1,4032.0,3.103]
[1758978037548,1.0286,4032.1,4032.0,3.103]
[1758978037749,18.07335336,4032.1,4032.0,1.855]
[1758978039147,1.94525,4032.0,4031.9,3.2078]
[1758978039348,12.23175,4032.0,4031.9,5.0628]
[1758978041261,12.23175,4032.0,4031.9,3.2078]
[1758978041959,3.07178,4031.7,4031.6,1.855]
[1758978042158,3.35378,4031.7,4031.6,1.855]
[1758978045356,0.44619,4031.6,4031.4,3.2078]
[1758978045559,3.3538,4031.5,4031.4,4.7581]
[1758978045762,3.3528,4031.5,4031.4,4.7581]
[1758978045966,3.3528,4031.5,4031.4,3.9798]
[1758978046174,3.3528,4031.5,4031.4,5.0628]
[1758978046369,12.6828,4031.5,4031.4,3.2078]
[1758978046665,13.1064,4031.5,4031.4,3.2078]
[1758978047871,3.07185,4031.1,4031.0,0.20146852]
[1758978048067,17.54146336,4031.1,4031.0,0.20146852]
[1758978049573,17.54146336,4031.1,4031.0,0.00306852]
[1758978051164,3.07191,4030.5,4030.4,4.2908]
[1758978051366,12.13191,4030.5,4030.4,4.2908]
[1758978051964,12.53221,4030.5,4030.4,3.2078]
[1758978052175,12.53221,4030.5,4030.4,3.20971409]
[1758978052677,12.53221,4030.5,4030.4,0.00191409]
[1758978055067,17.53221,4030.5,4030.4,0.00191409]
[1758978055273,3.06766,4030.1,4030.0,0.1985]
[1758978055474,16.50527336,4030.1,4030.0,0.1985]
[1758978055777,3.06768,4029.9,4029.8,1.8848]
[1758978055977,13.39668,4029.9,4029.8,1.8848]
[1758978056174,13.39668,4029.9,4029.8,1.88682215]
[1758978056175,13.39935778,4029.9,4029.8,1.88682215]
[1758978056675,17.38423071,4029.9,4029.8,1.88682215]
[1758978058579,14.52065898,4029.9,4029.8,0.00202215]
[1758978059179,14.52065898,4029.9,4029.8,1.09692215]
[1758978059378,14.52065898,4029.9,4029.8,0.00202215]
[1758978059577,3.06771,4029.6,4029.5,2.0833]
[1758978059879,12.9970112,4029.6,4029.5,2.0833]
[1758978060272,12.9970112,4029.6,4029.5,0.1985]
[1758978060473,3.06774,4029.4,4029.3,5.0926]
[1758978060776,3.06777,4029.1,4029.0,1.8848]
[1758978060981,15.1283724,4029.1,4029.0,1.88745458]
[1758978061376,15.1283724,4029.1,4029.0,0.00265458]
[1758978061671,1.508,4028.8,4028.5,0.4697]
[1758978061873,3.06784,4028.5,4028.4,1.8848]
[1758978062078,13.2661412,4028.5,4028.4,1.0949]
[1758978062378,2.6213,4028.2,4028.1,2.6501]
[1758978062675,4.4661712,4028.2,4028.1,2.65222865]
[1758978064087,4.0196012,4028.2,4028.1,2.65222865]
[1758978064280,4.4661712,4028.2,4028.1,2.65222865]
[1758978064578,4.0196012,4028.2,4028.1,2.65222865]
[1758978064883,3.65427,4029.2,4029.1,2.6501]
[1758978065180,12.05505595,4029.2,4029.1,2.6501]
[1758978065382,3.4848,4029.2,4029.1,2.6501]
[1758978066175,4.91205595,4029.2,4029.1,2.6501]
[1758978068081,3.4848,4029.2,4029.1,2.6501]
[1758978068286,4.91205595,4029.2,4029.1,2.6501]
[1758978068585,4.91105595,4029.2,4029.1,2.6501]
[1758978068883,6.85161595,4029.2,4029.1,2.6501]
[1758978069078,7.93091595,4029.2,4029.1,2.6501]
[1758978069278,6.40515595,4029.2,4029.1,2.6501]
[1758978069581,5.63515595,4029.2,4029.1,2.6501]
[1758978070083,4.91105595,4029.2,4029.1,2.6501]
[1758978070680,6.08821595,4029.2,4029.1,2.6501]
[1758978070886,5.64175595,4029.2,4029.1,2.6501]
[1758978071483,4.91105595,4029.2,4029.1,2.6501]
[1758978072186,5.64175595,4029.2,4029.1,2.6501]
[1758978072593,2.43395595,4029.2,4029.1,2.6501]
[1758978073581,3.65041595,4029.2,4029.1,2.6501]
[1758978073783,7.93751595,4029.2,4029.1,2.6501]
[1758978073987,7.93751595,4029.2,4029.1,1.8848]
[1758978075487,2.58,4028.7,4028.6,2.5546]
[1758978075685,5.7095119,4028.7,4028.6,2.5546]
[1758978077283,6.1560319,4028.7,4028.6,2.5546]
[1758978077791,5.7095119,4028.7,4028.6,2.5546]
[1758978078194,12.1673119,4028.7,4028.1,0.00212865]
[1758978078387,7.21505595,4028.2,4028.1,2.55672865]
[1758978078586,15.25075595,4028.2,4028.1,2.55672865]
[1758978079089,16.33005595,4028.2,4028.1,2.55672865]
[1758978080796,16.05505595,4028.2,4028.1,2.55672865]
[1758978080994,16.33005595,4028.2,4028.1,2.55672865]
[1758978082398,16.33005595,4028.2,4028.1,1.81362865]
[1758978082896,16.33005595,4028.2,4028.1,0.00212865]
[1758978083291,1.0212,4028.0,4027.8,1.124]
[1758978083496,3.1025,4028.0,4027.8,1.124]
[1758978083899,3.5491,4028.0,4027.8,1.124]
[1758978084301,3.5491,4028.0,4027.9,0.02715955]
[1758978084598,1.95264,4027.6,4027.5,1.8549]
[1758978084793,1.95265,4027.5,4027.4,0.1986]
[1758978084997,1.0572,4027.4,4027.3,0.7309]
[1758978085193,4.71211595,4027.4,4027.3,1.8549]
[1758978085702,4.71211595,4027.4,4027.3,1.85792576]
[1758978086399,4.26545595,4027.4,4027.3,2.63612576]
[1758978086601,2.8382,4027.4,4027.3,2.63612576]
[1758978086801,1.781,4027.4,4027.3,2.63612576]
[1758978088701,2.22766,4027.4,4027.3,2.63612576]
[1758978089002,4.71211595,4027.4,4027.3,2.63612576]
[1758978089196,4.71211595,4027.4,4027.3,0.00302576]
[1758978089393,6.26211595,4027.4,4027.3,0.00302576]
[1758978089700,3.0099,4027.1,4027.0,3.2078]
[1758978089890,4.71215595,4027.1,4027.0,3.2078]
[1758978090097,3.00993,4026.8,4026.7,2.0535]
[1758978090291,3.00993,4026.8,4025.8,2.6331]
[1758978090292,2.5632,4025.9,4025.8,2.6331]
[1758978090594,9.105,4025.9,4025.8,2.6331]
[1758978090794,0.27716772,4025.9,4025.8,6.28953049]
[1758978092596,0.27716772,4025.9,4025.8,5.84269049]
[1758978093797,0.72399772,4025.9,4025.8,5.84269049]
[1758978093996,1.03406772,4025.9,4025.8,5.84269049]
[1758978094203,1.48089772,4025.9,4025.8,5.84269049]
[1758978094498,1.48089772,4025.9,4025.8,2.63489049]
[1758978094900,2.22999772,4025.9,4025.8,2.63489049]
[1758978095201,3.28719772,4025.9,4025.8,2.63489049]
[1758978096404,3.28719772,4025.9,4025.8,1.85669049]
[1758978097805,3.28719772,4025.9,4025.8,2.63489049]
[1758978099906,2.84036772,4025.9,4025.8,1.85669049]
[1758978100406,3.28719772,4025.9,4025.8,1.85669049]
[1758978101309,3.28719772,4025.9,4025.8,2.63489049]
[1758978102104,0.27716772,4025.9,4025.8,8.08173049]
[1758978102608,9.3224215,4025.9,4025.8,2.63489049]
[1758978102810,9.7692515,4025.9,4025.8,2.63489049]
[1758978103810,3.96686772,4025.9,4025.8,2.63489049]
[1758978104010,4.24186772,4025.9,4025.8,2.63489049]
[1758978104908,4.68869772,4025.9,4025.8,2.63489049]
[1758978105107,4.24186772,4025.9,4025.8,2.63489049]
[1758978105810,4.68869772,4025.9,4025.8,2.63489049]
[1758978106010,6.49499772,4025.9,4025.8,2.63489049]
[1758978110101,6.49499772,4025.9,4025.8,1.85669049]
[1758978110305,6.04816772,4025.9,4025.8,1.85669049]
[1758978110906,6.04816772,4025.9,4025.8,2.63489049]
[1758978111303,0.00216772,4025.9,4025.8,3.08173049]
[1758978111513,0.27716772,4025.9,4025.8,3.08173049]
[1758978112612,3.2078,4026.4,4026.3,1.95588]
[1758978112813,3.4828,4026.4,4026.3,2.6331]
[1758978113212,4.2397,4026.4,4026.3,2.6331]
[1758978113611,6.47761725,4026.4,4026.3,2.6331]
[1758978113811,4.97604725,4026.4,4026.3,2.6331]
[1758978114417,0.00194725,4026.4,4026.3,3.07988]
[1758978114718,0.17594725,4026.4,4026.3,8.07988]
[1758978117116,0.00194725,4026.4,4026.3,8.07988]
[1758978117316,3.2078,4026.9,4026.8,3.07723]
[1758978117517,3.4828,4026.9,4026.8,3.07723]
[1758978118319,3.48556444,4026.9,4026.8,3.07723]
[1758978118816,3.21056444,4026.9,4026.8,3.07723]
[1758978119017,3.48556444,4026.9,4026.8,3.07723]
[1758978119822,3.21056444,4026.9,4026.8,3.07723]
[1758978120014,3.48556444,4026.9,4026.8,3.07723]
[1758978120521,3.21056444,4026.9,4026.8,3.07723]
[1758978120718,2.50196879,4028.4,4028.1,0.44657]
[1758978120919,2.5349,4028.3,4028.2,3.2078]
[1758978121718,2.53741328,4028.3,4028.2,3.2078]
[1758978126523,2.53741328,4028.3,4028.2,3.65437]
[1758978126722,2.81141328,4028.3,4028.2,3.65437]
[1758978127226,2.53741328,4028.3,4028.2,3.65437]
[1758978127532,2.81141328,4028.3,4028.2,3.65437]
[1758978128328,0.00251328,4028.3,4028.2,8.65437]
[1758978128526,1.5448,4029.0,4028.9,0.4465]
[1758978128727,1.8188,4029.0,4028.9,0.4465]
[1758978128925,2.5896,4029.0,4028.9,0.4465]
[1758978129127,3.3553,4029.0,4028.9,0.4465]
[1758978129321,3.0813,4029.0,4028.9,0.4465]
[1758978129528,3.35723645,4029.0,4028.9,0.44965361]
[1758978129826,3.35723645,4029.0,4028.9,0.00315361]
[1758978130738,3.35723645,4029.0,4028.9,0.44965361]
[1758978131034,3.35723645,4029.0,4028.9,0.00315361]
[1758978131436,3.08323645,4029.0,4028.9,0.00315361]
[1758978131629,3.35723645,4029.0,4028.9,0.00315361]
[1758978133230,1.11604,4029.7,4028.9,0.00315361]
[1758978133231,1.75626879,4031.0,4030.9,1.89017]
[1758978133433,1e-08,4031.0,4030.9,11.05477]
[1758978133735,0.7708,4031.3,4031.2,1.4439]
[1758978134124,1.53830206,4031.3,4031.2,1.4439]
[1758978134331,0.4634,4031.5,4031.3,0.44623]
[1758978134638,1.2342,4031.5,4031.4,4.6517]
[1758978135139,2.358,4031.5,4031.4,4.6517]
[1758978135539,2.35981202,4031.5,4031.4,4.6517]
[1758978135930,1.2342,4032.0,4031.9,1.16896]
[1758978136135,1.5082,4032.0,4031.9,5.09786]
[1758978136937,1.51039977,4032.0,4031.9,5.10036034]
[1758978137635,0.73959977,4032.0,4031.9,5.84786034]
[1758978137939,2.36019977,4032.0,4031.9,5.84786034]
[1758978138141,2.36019977,4032.0,4031.9,5.10036034]
[1758978142533,5.86218304,4032.9,4031.9,5.10036034]
[1758978142534,0.022,4032.9,4031.9,5.84786034]
[1758978142839,0.4634,4033.5,4033.4,1.458]
[1758978142840,3.1988,4033.5,4033.4,1.458]
[1758978143042,3.1988,4033.5,4033.4,3.2078]
[1758978143643,3.4728,4033.5,4033.4,3.2078]
[1758978143840,3.47597983,4033.5,4033.4,3.2078]
[1758978144032,17.57597983,4033.5,4033.4,3.2078]
[1758978146248,2.6559,4032.8,4032.7,3.2078]
[1758978146450,2.9299,4032.8,4032.7,3.2078]
[1758978148239,2.9299,4032.8,4032.4,1.0995]
[1758978148542,2.9299,4032.8,4032.2,3.2078]
[1758978148543,0.44608,4032.7,4032.2,3.2078]
[1758978148749,0.77,4032.3,4032.2,5.7653]
[1758978149049,1.044,4032.3,4032.2,5.7653]
[1758978149843,2.23752,4032.3,4032.2,5.7653]
[1758978150044,3.37602,4032.3,4032.2,5.7653]
[1758978151851,11.11418304,4032.3,4031.9,0.00250034]
[1758978152045,3.10205,4032.0,4031.9,0.00250034]
[1758978152350,3.37605,4032.0,4031.9,0.00250034]
[1758978152744,3.37605,4032.0,4031.9,1.10200034]
[1758978155753,3.37605,4032.0,4031.9,0.00250034]
[1758978156053,17.49605,4032.0,4031.9,0.00250034]
[1758978158757,17.49605,4032.0,4031.9,1.10200034]
[1758978159357,9.394,4032.0,4031.9,2.56000034]
[1758978159560,1.7914,4032.0,4031.9,2.56000034]
[1758978159763,3.37605,4032.0,4031.9,1.84900034]
[1758978162668,1.49015,4032.0,4031.9,2.56000034]
[1758978163368,2.23755,4032.0,4031.9,2.56000034]
[1758978164566,3.37605,4032.0,4031.9,2.56000034]
[1758978165565,2.23755,4032.0,4031.9,2.56000034]
[1758978168571,12.12605,4032.0,4031.9,1.10200034]
[1758978168775,12.58945,4032.0,4031.9,0.00250034]
[1758978170380,12.58945,4032.0,4030.5,0.65634036]
[1758978170381,2.6534,4030.6,4030.5,0.65634036]
[1758978170679,2.5614,4030.6,4030.5,3.0084]
[1758978170866,0.77,4030.1,4030.0,0.4509]
[1758978171067,1.044,4030.1,4030.0,1.9089]
[1758978171272,1.04661836,4030.1,4030.0,1.91149389]
[1758978171472,1.04661836,4030.1,4030.0,3.01099389]
[1758978172265,1.79401836,4030.1,4030.0,3.01099389]
[1758978172480,8.7702014,4030.1,4030.0,0.00259389]
[1758978173076,18.5102014,4030.1,4030.0,0.00259389]
[1758978173272,3.08372,4029.6,4029.5,1.6157]
[1758978173471,9.19790304,4029.6,4029.5,1.6157]
[1758978173777,21.73570304,4029.6,4029.5,1.1648]
[1758978174372,21.73570304,4029.6,4029.5,0.00218982]
[1758978174973,18.52790304,4029.6,4029.5,0.00218982]
[1758978176574,21.73570304,4029.6,4029.5,1e-08]
[1758978177174,1.1147,4028.7,4028.5,1.1648]
[1758978177382,2.9113,4028.6,4028.5,1.1648]
[1758978177577,12.1113,4028.6,4028.5,1.1648]
[1758978177885,0.7511,4028.1,4028.0,6.3525]
[1758978178083,1.0251,4028.1,4028.0,6.3525]
[1758978178280,0.274,4028.1,4028.0,6.35505844]
[1758978179780,1.0251,4028.1,4028.0,6.35505844]
[1758978180180,1.7966,4028.1,4028.0,6.35505844]
[1758978180385,8.75148304,4028.1,4028.0,5.63995844]
[1758978180582,6.87248478,4028.1,4028.0,5.63995844]
[1758978180974,6.87248478,4028.1,4028.0,3.16525844]
[1758978181179,5.34988478,4028.1,4028.0,3.16525844]
[1758978181783,6.10098478,4028.1,4028.0,3.16525844]
[1758978181979,6.87248478,4028.1,4028.0,3.16525844]
[1758978182287,7.98718478,4028.1,4028.0,0.00255844]
[1758978182583,13.62718478,4028.1,4028.0,0.00255844]
[1758978182887,13.62718478,4028.1,4027.5,3.6767]
[1758978182888,1.96924,4027.6,4027.5,3.6767]
[1758978183079,8.43382478,4027.6,4027.5,5.6374]
[1758978183385,8.43382478,4027.6,4027.5,3.2078]
[1758978183685,8.43382478,4027.6,4027.5,4.3726]
[1758978183881,8.43382478,4027.6,4027.5,3.21011811]
[1758978184091,17.64382478,4027.6,4027.5,3.21011811]
[1758978185187,17.64382478,4027.6,4027.5,0.00231811]
[1758978185390,1.56,4027.6,4027.5,2.00021811]
[1758978185592,0.274,4027.6,4027.5,5.20801811]
[1758978186087,0.274,4027.6,4027.5,6.37281811]
[1758978187488,0.274,4027.6,4027.5,11.37281811]
[1758978187787,0.274,4027.6,4027.5,11.81946811]
[1758978190593,0.274,4027.6,4027.5,11.37281811]
[1758978190794,0.274,4027.6,4027.5,11.81946811]
[1758978193898,1.7932,4027.6,4027.5,6.37281811]
[1758978194390,1.0481,4027.6,4027.5,6.37281811]
[1758978194798,1.0481,4027.6,4027.5,6.81946811]
[1758978196193,1.7932,4027.6,4027.5,6.37281811]
[1758978196795,1.7932,4027.6,4027.5,3.16501811]
[1758978197797,4.17634,4027.6,4027.5,1.96301811]
[1758978197994,10.55634,4027.6,4027.5,1.16711811]
[1758978198697,2.9097,4027.6,4027.5,1.16711811]
[1758978198904,1.7932,4027.6,4027.5,3.13701811]
[1758978199901,2.23984,4027.6,4027.5,3.13701811]
[1758978200696,3.66837213,4027.6,4027.5,3.13701811]
[1758978201201,15.15340426,4027.6,4027.5,0.00231811]
[1758978201601,15.15340426,4027.6,4027.0,3.2078]
[1758978201602,1.9659,4027.1,4027.0,3.2078]
[1758978201790,1.5192,4026.6,4026.5,5.6632]
[1758978201991,3.22073213,4026.6,4026.5,6.3996]
[1758978202303,1.70153213,4026.6,4026.5,6.3996]
[1758978202511,1.70389887,4026.6,4026.5,6.40242121]
[1758978203303,2.49479887,4026.6,4026.5,6.40242121]
[1758978204892,2.94154887,4026.6,4026.5,6.40242121]
[1758978205094,3.74214887,4026.6,4026.5,6.40242121]
[1758978205507,4.87054887,4026.6,4026.5,6.40242121]
[1758978207102,3.74214887,4026.6,4026.5,6.40242121]
[1758978208211,3.29539887,4026.6,4026.5,3.19462121]
[1758978208706,1.70389887,4026.6,4026.5,3.19462121]
[1758978208903,1.43089887,4026.6,4026.5,3.64138121]
[1758978209105,1.70389887,4026.6,4026.5,3.64138121]
[1758978210405,1.43089887,4026.6,4026.5,3.64138121]
[1758978210708,1.70389887,4026.6,4026.5,3.64138121]
[1758978213614,2.49479887,4026.6,4026.5,3.64138121]
[1758978214411,3.29539887,4026.6,4026.5,2.45822121]
[1758978214613,4.42379887,4026.6,4026.5,2.45822121]
[1758978215206,4.42379887,4026.6,4026.5,0.00282121]
[1758978215713,4.87054887,4026.6,4026.5,0.00282121]
[1758978215912,4.87054887,4026.6,4025.8,2.17544]
[1758978215913,2.7762,4025.9,4025.8,2.17544]
[1758978216108,4.47773213,4025.9,4025.8,1.39994]
[1758978216409,4.47773213,4025.9,4025.8,0.7544]
[1758978216813,4.47773213,4025.9,4025.8,1.53273076]
[1758978218016,4.47773213,4025.9,4025.8,2.64293076]
[1758978220502,4.47773213,4025.9,4025.8,0.75723076]
[1758978220706,4.92456213,4025.9,4025.8,0.75723076]
[1758978220902,8.59456213,4025.9,4025.8,0.00283076]
[1758978221509,4.47773213,4025.9,4025.8,1.20407076]
[1758978222323,4.47773213,4025.9,4025.8,0.75723076]
[1758978223005,2.7762,4025.9,4025.8,1.97957076]
[1758978223210,0.00236674,4026.6,4026.5,3.56656]
[1758978223411,9.20236674,4026.6,4026.5,6.77436]
[1758978223610,0.00236674,4026.6,4026.5,6.77436]
[1758978231023,2.77856674,4026.6,4026.5,6.77436]
[1758978231720,3.22531674,4026.6,4026.5,5.8479]
[1758978232420,3.05156674,4026.6,4026.5,5.8479]
[1758978234325,0.27536674,4026.6,4026.5,6.75436]
[1758978236317,1.7561063,4027.4,4027.3,0.7427]
[1758978236522,1.0487,4027.4,4027.3,2.7094]
[1758978236824,2.1464,4027.4,4027.3,2.7094]
[1758978237019,4.34393213,4027.4,4027.3,2.7094]
[1758978237219,5.77246426,4027.4,4027.3,2.7094]
[1758978237518,5.77515346,4027.4,4027.3,2.7094]
[1758978237922,2.47892133,4027.4,4027.3,3.15607]
[1758978238123,0.0026892,4027.4,4027.3,3.15607]
[1758978238325,1.70322133,4027.4,4027.3,3.15607]
[1758978238513,0.2746892,4027.4,4027.3,3.15607]
[1758978238718,1.70322133,4027.4,4027.3,3.15607]
[1758978238919,0.0026892,4027.4,4027.3,3.15607]
[1758978239216,1.70322133,4027.4,4027.3,3.15607]
[1758978239728,4.34662133,4027.4,4027.3,2.7094]
[1758978240522,2.9180892,4027.4,4027.3,2.7094]
[1758978240726,4.69826243,4027.4,4027.3,2.7094]
[1758978241218,4.69826243,4027.4,4027.0,3.2078]
[1758978241219,2.6434,4027.1,4027.0,3.2078]
[1758978241425,4.69557323,4027.1,4027.0,3.2078]
[1758978242022,4.69557323,4027.1,4027.0,3.9505]
[1758978242618,4.69557323,4027.1,4027.0,5.9172]
[1758978242818,4.69557323,4027.1,4027.0,6.36391]
[1758978243026,2.82787323,4027.1,4027.0,6.82361]
[1758978243927,4.69557323,4027.1,4027.0,6.3769]
[1758978244327,0.7757,4026.7,4026.6,3.15615]
[1758978244528,4.69557323,4026.7,4026.6,2.7094]
[1758978245420,1.0987,4026.6,4026.5,3.2078]
[1758978245727,2.6434,4026.6,4026.5,3.2078]
[1758978246019,2.6434,4026.4,4026.3,1.9268]
[1758978246213,4.69557323,4026.4,4026.3,1.9268]
[1758978246517,2.9154,4026.4,4026.3,1.9268]
[1758978247320,1.5447,4026.0,4025.9,4.7331]
[1758978247620,3.3571,4026.0,4025.8,0.20153076]
[1758978248922,2.6486,4025.9,4025.8,1.43536076]
[1758978249119,2.6486,4025.9,4025.8,2.56416076]
[1758978249317,2.6486,4025.9,4025.8,2.83643076]
[1758978250028,2.6486,4025.9,4025.8,2.63773076]
[1758978250226,2.6486,4025.9,4025.8,0.78983076]
[1758978250431,2.6486,4025.9,4025.8,0.00283076]
[1758978250930,2.6486,4025.9,4025.8,0.78983076]
[1758978251130,2.6486,4025.9,4025.8,1.91863076]
[1758978251927,3.09543,4025.9,4025.8,0.00283076]
[1758978252631,2.6486,4025.9,4025.8,0.00283076]
[1758978253031,3.09543,4025.9,4025.8,0.00283076]
[1758978266140,2.36438,4025.5,4025.4,0.1987]
[1758978266341,9.59864171,4025.5,4025.4,0.1987]
[1758978266539,8.47914171,4025.5,4024.9,4.3283]
[1758978266743,0.735,4025.0,4024.9,5.8338]
[1758978267042,1.007,4025.0,4024.9,6.28075]
[1758978267239,0.272,4025.0,4024.9,6.283214]
[1758978267642,2.866,4025.0,4024.9,5.836264]
[1758978268149,3.31293,4025.0,4024.9,5.836264]
[1758978268646,5.095172,4025.0,4024.9,5.836264]
[1758978268849,5.538172,4025.0,4024.9,3.983864]
[1758978269151,5.538172,4025.0,4024.9,3.210264]
[1758978269843,2.594,4025.0,4024.9,4.715764]
[1758978270046,1.8545,4025.9,4025.8,2.626]
[1758978270242,2.865,4025.9,4025.8,2.626]
[1758978270549,2.865,4025.9,4025.8,0.7736]
[1758978271449,2.865,4025.9,4025.6,0.44686]
[1758978271659,2.594,4025.6,4025.5,1.8941]
[1758978271856,2.865,4025.6,4025.5,1.8941]
[1758978272450,2.865,4025.6,4025.5,2.626]
[1758978273053,2.865,4025.6,4025.5,3.07288]
[1758978274159,1.7455,4025.6,4025.5,3.52898]
[1758978274353,0.271,4025.6,4025.5,3.52898]
[1758978275053,4.990042,4026.0,4025.9,1.95233]
[1758978275256,2.053242,4026.0,4025.9,3.07283]
[1758978275654,2.788242,4026.0,4025.9,3.07283]
[1758978278060,4.647242,4026.0,4025.9,3.07283]
[1758978281260,2.865,4026.0,4025.9,3.07283]
[1758978281454,4.647242,4026.0,4025.9,3.07283]
[1758978286366,5.090242,4026.0,4025.9,3.07283]
[1758978287162,0.271,4026.0,4025.9,3.07283]
[1758978287652,2.1255,4026.0,4025.9,3.07283]
[1758978287856,2.865,4026.0,4025.9,3.07283]
[1758978288056,2.865,4026.0,4025.9,2.626]
[1758978288264,2.594,4026.0,4025.9,2.626]
[1758978288464,2.865,4026.0,4025.9,2.626]
[1758978292967,2.594,4026.0,4025.9,2.626]
[1758978293274,2.865,4026.0,4025.9,2.626]
[1758978294570,2.865,4026.0,4025.9,3.07283]
[1758978294768,2.865,4026.0,4025.9,2.626]
[1758978295375,3.2983,4026.0,4025.9,2.626]
[1758978296373,2.865,4026.0,4025.9,2.626]
[1758978302371,0.271,4026.0,4025.9,3.07283]
[1758978302579,1.70035567,4026.0,4025.9,2.626]
[1758978303777,3.59705567,4026.0,4025.9,2.626]
[1758978307575,4.04387567,4026.0,4025.9,2.626]
[1758978307983,4.81137567,4026.0,4025.9,2.626]
[1758978309784,4.36455567,4026.0,4025.9,2.626]
[1758978310085,4.81137567,4026.0,4025.9,2.626]
[1758978310780,4.36455567,4026.0,4025.9,2.626]
[1758978311183,4.81137567,4026.0,4025.9,2.626]
[1758978311382,4.36455567,4026.0,4025.9,2.626]
[1758978312079,4.81137567,4026.0,4025.9,2.626]
[1758978312281,2.47575567,4026.0,4025.9,2.626]
[1758978312884,4.00977567,4026.0,4025.9,2.626]
[1758978313384,2.92257567,4026.0,4025.9,2.626]
[1758978313584,4.00977567,4026.0,4025.9,2.626]
[1758978316187,0.27,4026.0,4025.9,3.07283]
[1758978316482,3.77432,4026.0,4025.9,2.626]
[1758978316886,3.77432,4026.0,4025.9,0.7736]
[1758978317284,1.95923,4025.9,4025.8,3.977]
[1758978317586,2.5996,4025.9,4025.8,5.1309]
[1758978317990,2.5996,4025.9,4025.8,5.8664]
[1758978318487,3.04643,4025.9,4025.8,5.8664]
[1758978319488,1.8466,4025.9,4025.8,6.31325]
[1758978319983,0.27,4026.0,4025.9,3.10543]
[1758978321693,1.0872,4027.2,4026.7,3.10535]
[1758978321987,0.0026892,4027.4,4026.7,1.9231]
[1758978321988,1.42935567,4026.8,4026.7,1.9231]
[1758978322190,3.50427,4026.5,4026.4,1.9231]
[1758978322492,5.20262567,4026.5,4026.4,1.9231]
[1758978322990,5.20262567,4026.5,4026.4,0.7692]
[1758978323187,4.75585567,4026.5,4026.4,2.6041]
[1758978323390,5.20262567,4026.5,4026.4,2.6041]
[1758978323586,2.99388,4026.4,4026.3,3.2078]
[1758978324893,2.99388,4026.4,4026.3,3.9311]
[1758978325194,2.99388,4026.4,4026.3,4.9973]
[1758978331497,2.99388,4026.4,4026.3,3.2078]
[1758978331688,2.99388,4026.4,4026.3,4.9973]
[1758978331892,2.99388,4026.4,4026.3,5.766]
[1758978332196,2.5471,4026.4,4026.3,5.766]
[1758978332586,2.5471,4026.4,4026.3,6.21279]
[1758978332791,1.69835567,4026.5,4026.4,1.0662]
[1758978333095,3.53965567,4026.5,4026.4,2.5582]
[1758978333790,4.69222567,4026.5,4026.4,2.5582]
[1758978334890,5.11482567,4026.5,4026.4,0.7233]
[1758978335294,2.5471,4026.4,4026.3,3.2078]
[1758978335596,2.99388,4026.4,4026.3,5.766]
[1758978335797,2.5471,4026.0,4025.9,1.7895]
[1758978336098,4.24545567,4026.0,4025.9,3.00503]
[1758978336698,2.40875567,4026.0,4025.9,3.00503]
[1758978337388,4.24545567,4026.0,4025.9,2.5582]
[1758978337996,4.24545567,4026.0,4025.9,3.00503]
[1758978338592,1.86303,4025.9,4025.8,3.2078]
[1758978338794,2.99393,4025.9,4025.8,3.2078]
[1758978339892,2.5471,4025.9,4025.8,3.2078]
[1758978340598,2.99393,4025.9,4025.8,3.2078]
[1758978341891,17.29393,4025.9,4025.8,3.2078]
[1758978342092,17.29393,4025.9,4025.0,0.88963]
[1758978342093,2.5471,4025.4,4025.3,3.2078]
[1758978342398,4.24545567,4025.4,4025.3,3.2078]
[1758978342889,4.69234567,4025.4,4025.3,3.2078]
[1758978344698,14.33234567,4025.4,4025.3,3.2078]
[1758978344903,19.33234567,4025.4,4025.3,3.2078]
[1758978345902,2.99401,4025.2,4025.1,0.1987]
[1758978346097,12.24201,4025.2,4025.1,0.1987]
[1758978346802,0.86953,4025.0,4024.9,0.002464]
[1758978347103,13.97398567,4025.0,4024.9,0.002464]
[1758978348604,15.40334134,4025.0,4024.9,0.002464]
[1758978348797,13.97398567,4025.0,4024.9,0.002464]
[1758978349603,15.40334134,4025.0,4024.9,0.002464]
[1758978349796,1.11739,4024.9,4024.3,1.0662]
[1758978350003,3.97645567,4024.4,4024.3,1.7895]
[1758978350203,4.24445567,4024.4,4024.3,1.7895]
[1758978350898,4.24726799,4024.4,4024.3,1.7918214]
[1758978352504,4.24726799,4024.4,4024.3,0.7256214]
[1758978352694,4.69426799,4024.4,4024.3,0.7256214]
[1758978352896,4.24726799,4024.4,4024.3,0.7256214]
[1758978353502,4.69426799,4024.4,4024.3,0.7256214]
[1758978354397,4.69426799,4024.4,4024.3,0.0023214]
[1758978357106,4.69426799,4024.4,4024.3,0.7064214]
[1758978357404,4.24726799,4024.4,4024.3,2.4877214]
[1758978357597,4.69426799,4024.4,4024.3,2.4877214]
[1758978359910,4.24726799,4024.4,4024.3,2.4877214]
[1758978360105,4.69426799,4024.4,4024.3,0.0023214]
[1758978360302,4.24726799,4024.4,4024.3,2.4877214]
[1758978361603,4.24726799,4024.4,4024.3,2.9347314]
[1758978362712,4.24726799,4024.4,4024.3,2.4877214]
[1758978364205,4.24726799,4024.4,4024.3,2.9347314]
[1758978364605,4.60061384,4024.4,4024.3,2.9347314]